fUST/lending_fUST_20250707
["ID","MTS","AMOUNT","RATE_DAILY","PERIOD"]
[370016483,1751835043485,-771.03,0.00017939,2]
[370016484,1751835043495,-591.79,0.00017939,2]
[370016485,1751835043504,-460.0,0.0001794,2]
[370016486,1751835043515,-1083.75,0.0001794,2]
[370016487,1751835043525,-460.0,0.0001794,2]
[370016488,1751835043535,-1320.85,0.0001794,2]
[370016489,1751835043544,-985.19,0.0001794,2]
[370016490,1751835043554,-2142.33,0.0001794,2]
[370016491,1751835043564,-559.0,0.0001794,2]
[370016492,1751835043573,-460.0,0.0001794,2]
[370016493,1751835043583,-460.0,0.0001794,2]
[370016494,1751835043595,-662.04,0.0001794,2]
[370016495,1751835043605,-724.84,0.0001794,2]
[370016496,1751835043615,-460.0,0.0001794,2]
[370016498,1751835043624,-460.0,0.0001794,2]
[370016499,1751835043633,-460.0,0.0001794,2]
[370016501,1751835043643,-460.0,0.0001794,2]
[370016502,1751835043652,-1494.62,0.0001794,2]
[370016504,1751835043662,-460.0,0.0001794,2]
[370016505,1751835043671,-460.0,0.00017941,2]
[370016506,1751835043680,-460.0,0.00017941,2]
[370016507,1751835043689,-460.0,0.00017941,2]
[370016508,1751835043698,-460.0,0.00017941,2]
[370016509,1751835043708,-460.0,0.00017941,2]
[370016510,1751835043717,-548.26,0.00017941,2]
[370016511,1751835043726,-460.0,0.00017941,2]
[370016513,1751835043735,-587.0,0.00017941,2]
[370016515,1751835043749,-460.0,0.00017942,2]
[370016517,1751835043758,-460.0,0.00017942,2]
[370016519,1751835043768,-460.0,0.00017942,2]
[370016521,1751835043778,-865.91,0.00017942,2]
[370016522,1751835043788,-2596.85,0.00017942,2]
[370016523,1751835043797,-650.75,0.00017942,2]
[370016524,1751835043806,-500.0,0.00017973,2]
[370016525,1751835043815,-500.0,0.00017973,2]
[370016526,1751835043824,-249.74738731,0.00017973,2]
[370016527,1751835043833,-2755.0235391,0.00018,2]
[370016528,1751835043842,-812.77108719,0.00018,2]
[370016529,1751835043851,-60147.17827991,0.00018,2]
[370016530,1751835043860,-9479.00566272,0.00018,2]
[370016531,1751835043869,-31988.18058217,0.00018,2]
[370016532,1751835043878,-12438.46890546,0.00018,2]
[370016533,1751835043888,-5099.20161548,0.00018,2]
[370016534,1751835043901,-151.27645238,0.00018,2]
[370016535,1751835043910,-151.0,0.00018,2]
[370016536,1751835043919,-151.0,0.00018,2]
[370016537,1751835043929,-151.0,0.00018,2]
[370016538,1751835043938,-151.0,0.00018,2]
[370016539,1751835043947,-151.0,0.00018,2]
[370016540,1751835043956,-1000.0,0.00018068,2]
[370016541,1751835043965,-1000.0,0.00018068,2]
[370016542,1751835043974,-500.0,0.00018068,2]
[370016543,1751835043983,-3771.1048351,0.00018082,2]
[370016544,1751835043992,-3393.69868081,0.0001815,2]
[370016546,1751835044002,-163.18853506,0.00018171,2]
[370016548,1751835044013,-966.68,0.00018212,2]
[370016549,1751835044023,-1386.99,0.00018212,2]
[370016550,1751835044033,-460.0,0.00018213,2]
[370016551,1751835044043,-1275.66,0.00018213,2]
[370016552,1751835044052,-1400.55,0.00018213,2]
[370016553,1751835044061,-771.03,0.00018213,2]
[370016554,1751835044071,-591.79,0.00018213,2]
[370016555,1751835044080,-460.0,0.00018214,2]
[370016556,1751835044089,-1083.75,0.00018214,2]
[370016557,1751835044098,-460.0,0.00018214,2]
[370016558,1751835044107,-1320.85,0.00018214,2]
[370016559,1751835044116,-985.19,0.00018214,2]
[370016560,1751835044126,-2142.33,0.00018214,2]
[370016561,1751835044135,-559.0,0.00018214,2]
[370016562,1751835044144,-457.57727128,0.00018214,2]
[370016563,1751835044153,-460.0,0.00018214,2]
[370016564,1751835044163,-662.04,0.00018214,2]
[370016565,1751835044172,-724.84,0.00018214,2]
[370016566,1751835044181,-459.87,0.00018214,2]
[370016567,1751835044190,-460.0,0.00018214,2]
[370016568,1751835044200,-460.0,0.00018214,2]
[370016569,1751835044209,-1494.62,0.00018214,2]
[370016570,1751835044218,-460.0,0.00018214,2]
[370016571,1751835044227,-460.0,0.00018215,2]
[370016572,1751835044236,-460.0,0.00018215,2]
[370016573,1751835044245,-460.0,0.00018215,2]
[370016574,1751835044255,-460.0,0.00018215,2]
[370016575,1751835044264,-548.26,0.00018215,2]
[370016576,1751835044274,-436.06630312,0.00018215,2]
[370016577,1751835044283,-151.0,0.00018215,2]
[370016578,1751835044293,-151.0,0.00018215,2]
[370016579,1751835044302,-587.0,0.00018215,2]
[370016580,1751835044312,-151.0,0.00018215,2]
[370016582,1751835044321,-209.655756,0.00018215,2]
[370016583,1751835044330,-209.655756,0.00018215,2]
[370016584,1751835044339,-151.0,0.00018215,2]
[370016585,1751835044350,-151.0,0.00018216,2]
[370016586,1751835044360,-460.0,0.00018216,2]
[370016587,1751835044369,-151.0,0.00018216,2]
[370016588,1751835044379,-460.0,0.00018216,2]
[370016589,1751835044389,-151.0,0.00018216,2]
[370016590,1751835044399,-151.0,0.00018216,2]
[370016591,1751835044409,-160.528021,0.00018216,2]
[370016592,1751835044419,-160.528021,0.00018216,2]
[370016593,1751835044430,-865.91,0.00018216,2]
[370016594,1751835044441,-151.0,0.00018216,2]
[370016595,1751835044451,-421.64019,0.00018216,2]
[370016596,1751835044460,-151.0,0.00018216,2]
[370016597,1751835044470,-421.64019,0.00018216,2]
[370016598,1751835044478,-151.0,0.00018216,2]
[370016599,1751835044488,-151.0,0.00018216,2]
[370016600,1751835044497,-2596.85,0.00018216,2]
[370016601,1751835044507,-650.75,0.00018216,2]
[370016603,1751835044516,-500.0,0.00018307,2]
[370016604,1751835044525,-448.96773712,0.00018307,2]
[370016605,1751835044534,-500.0,0.00018307,2]
[370016606,1751835044544,-384.56470533,0.00018307,2]
[370016607,1751835044553,-500.0,0.00018307,2]
[370016608,1751835044562,-500.0,0.00018307,2]
[370016609,1751835044571,-500.0,0.00018307,2]
[370016610,1751835044581,-500.0,0.00018307,2]
[370016611,1751835044590,-500.0,0.00018307,2]
[370016612,1751835044600,-500.0,0.00018307,2]
[370016613,1751835044611,-500.0,0.00018307,2]
[370016614,1751835044623,-500.0,0.00018307,2]
[370016615,1751835044632,-500.0,0.00018307,2]
[370016616,1751835044640,-500.0,0.00018307,2]
[370016617,1751835044650,-500.0,0.00018307,2]
[370016618,1751835044663,-329.72408581,0.00018307,2]
[370016619,1751835044672,-500.0,0.00018307,2]
[370016620,1751835044681,-500.0,0.00018307,2]
[370016621,1751835044691,-151.0,0.00018308,2]
[370016622,1751835044700,-244.624236,0.00018308,2]
[370016623,1751835044709,-244.624236,0.00018308,2]
[370016624,1751835044718,-151.0,0.00018308,2]
[370016625,1751835044729,-242.641373,0.00018308,2]
[370016626,1751835044741,-242.641373,0.00018308,2]
[370016627,1751835044751,-207.4,0.00018317,2]
[370016628,1751835044760,-690.642,0.00018317,2]
[370016629,1751835044768,-5000.0,0.00018317,2]
[370016630,1751835044778,-3525.85516033,0.00018317,2]
[370016631,1751835044787,-151.0,0.00018318,2]
[370016632,1751835044796,-151.0,0.00018318,2]
[370016633,1751835044805,-180.082329,0.00018318,2]
[370016634,1751835044814,-180.082329,0.00018318,2]
[370016635,1751835044823,-500.0,0.00018324,2]
[370016636,1751835044832,-1500.0,0.00018324,2]
[370016638,1751835044841,-1500.0,0.00018324,2]
[370016640,1751835044850,-716.195754,0.00018372,2]
[370016642,1751835044859,-500.0,0.0001838,2]
[370016644,1751835044869,-151.0,0.00018388,2]
[370016646,1751835044878,-151.0,0.00018388,2]
[370016647,1751835044886,-151.0,0.00018388,2]
[370016648,1751835044895,-151.0,0.00018388,2]
[370016649,1751835044905,-244.434973,0.00018388,2]
[370016650,1751835044914,-244.434973,0.00018388,2]
[370016651,1751835044923,-6658.65209215,0.0001839,2]
[370016652,1751835044932,-420.0,0.00018397,2]
[370016653,1751835044941,-151.0,0.00018399,2]
[370016654,1751835044950,-151.0,0.00018399,2]
[370016655,1751835044959,-151.0,0.00018399,2]
[370016656,1751835044968,-151.0,0.00018399,2]
[370016657,1751835044978,-151.0,0.00018399,2]
[370016658,1751835044987,-151.0,0.00018399,2]
[370016659,1751835044996,-151.0,0.00018399,2]
[370016660,1751835045005,-742.6949969,0.00018427,2]
[370016661,1751835045018,-151.0,0.00018452,2]
[370016662,1751835045028,-151.0,0.00018452,2]
[370016663,1751835045037,-151.0,0.00018452,2]
[370016664,1751835045046,-151.0,0.00018452,2]
[370016665,1751835045056,-500.0,0.00018464,2]
[370016666,1751835045065,-768.2487509,0.00018482,2]
[370016667,1751835045074,-966.68,0.00018486,2]
[370016668,1751835045212,-1386.99,0.00018486,2]
[370016669,1751835045221,-1275.66,0.00018487,2]
[370016670,1751835045230,-1400.55,0.00018487,2]
[370016671,1751835045239,-771.03,0.00018487,2]
[370016672,1751835045249,-591.79,0.00018487,2]
[370016673,1751835045258,-202.12,0.00018488,2]
[370016674,1751835045267,-1083.75,0.00018488,2]
[370016675,1751835045276,-460.0,0.00018488,2]
[370016676,1751835045287,-1320.85,0.00018488,2]
[370016677,1751835045296,-985.19,0.00018488,2]
[370016678,1751835045305,-2142.33,0.00018488,2]
[370016679,1751835045315,-559.0,0.00018488,2]
[370016680,1751835045324,-151.0,0.00018488,2]
[370016681,1751835045334,-460.0,0.00018488,2]
[370016682,1751835045343,-151.0,0.00018488,2]
[370016683,1751835045352,-151.0,0.00018488,2]
[370016684,1751835045361,-662.04,0.00018488,2]
[370016685,1751835045371,-151.0,0.00018488,2]
[370016686,1751835045380,-724.84,0.00018488,2]
[370016687,1751835045390,-460.0,0.00018488,2]
[370016688,1751835045399,-460.0,0.00018488,2]
[370016689,1751835045408,-1494.62,0.00018488,2]
[370016690,1751835045418,-460.0,0.00018488,2]
[370016691,1751835045427,-460.0,0.00018489,2]
[370016692,1751835045436,-460.0,0.00018489,2]
[370016693,1751835045445,-460.0,0.00018489,2]
[370016694,1751835045454,-460.0,0.00018489,2]
[370016696,1751835045464,-548.26,0.00018489,2]
[370016697,1751835045473,-587.0,0.00018489,2]
[370016698,1751835045482,-1680.0,0.00018489,2]
[370016699,1751835045491,-153.449117,0.0001849,2]
[370016700,1751835045500,-151.0,0.0001849,2]
[370016701,1751835045510,-151.0,0.0001849,2]
[370016702,1751835045519,-151.0,0.0001849,2]
[370016703,1751835045528,-151.0,0.0001849,2]
[370016704,1751835045537,-151.0,0.0001849,2]
[370016705,1751835045547,-460.0,0.0001849,2]
[370016706,1751835045556,-460.0,0.0001849,2]
[370016707,1751835045566,-865.91,0.0001849,2]
[370016708,1751835045575,-2596.85,0.0001849,2]
[370016709,1751835045585,-650.75,0.0001849,2]
[370016710,1751835045594,-151.0,0.00018492,2]
[370016711,1751835045604,-504.8074354,0.00018521,2]
[370016712,1751835045616,-500.0,0.00018521,2]
[370016713,1751835045626,-500.0,0.00018548,2]
[370016714,1751835045635,-1500.0,0.00018616,2]
[370016715,1751835045644,-1500.0,0.00018616,2]
[370016716,1751835045654,-500.0,0.00018632,2]
[370016717,1751835045665,-159.4673789,0.00018712,2]
[370016718,1751835045674,-177.7370323,0.00018712,2]
[370016719,1751835045684,-177.7370323,0.00018712,2]
[370016720,1751835045693,-159.4673789,0.00018712,2]
[370016721,1751835045702,-177.7370323,0.00018712,2]
[370016722,1751835045713,-159.4673789,0.00018712,2]
[370016723,1751835045723,-175.8784103,0.00018712,2]
[370016725,1751835045732,-159.4673789,0.00018712,2]
[370016726,1751835045741,-159.1887719,0.00018712,2]
[370016728,1751835045750,-500.0,0.00018716,2]
[370016729,1751835045759,-3393.69868081,0.00018733,2]
[370016731,1751835045770,-966.68,0.0001876,2]
[370016733,1751835045779,-1386.99,0.0001876,2]
[370016735,1751835045788,-1275.66,0.00018761,2]
[370016736,1751835045797,-1400.55,0.00018761,2]
[370016738,1751835045806,-771.03,0.00018761,2]
[370016740,1751835045815,-151.0,0.00018761,2]
[370016741,1751835045824,-151.0,0.00018761,2]
[370016743,1751835045833,-591.79,0.00018761,2]
[370016745,1751835045842,-151.0,0.00018761,2]
[370016746,1751835045851,-209.655756,0.00018761,2]
[370016747,1751835045860,-209.655756,0.00018761,2]
[370016748,1751835045870,-151.0,0.00018761,2]
[370016749,1751835045879,-1083.75,0.00018762,2]
[370016750,1751835045889,-460.0,0.00018762,2]
[370016751,1751835045898,-1320.85,0.00018762,2]
[370016752,1751835045908,-985.19,0.00018762,2]
[370016753,1751835045918,-2142.33,0.00018762,2]
[370016754,1751835045928,-559.0,0.00018762,2]
[370016755,1751835045938,-460.0,0.00018762,2]
[370016756,1751835045947,-662.04,0.00018762,2]
[370016758,1751835045956,-724.84,0.00018762,2]
[370016760,1751835045965,-460.0,0.00018762,2]
[370016762,1751835045975,-460.0,0.00018762,2]
[370016764,1751835045984,-1494.62,0.00018762,2]
[370016765,1751835045993,-460.0,0.00018762,2]
[370016767,1751835046002,-460.0,0.00018763,2]
[370016769,1751835046014,-460.0,0.00018763,2]
[370016771,1751835046024,-151.0,0.00018763,2]
[370016773,1751835046033,-244.624236,0.00018763,2]
[370016774,1751835046042,-244.624236,0.00018763,2]
[370016776,1751835046052,-151.0,0.00018763,2]
[370016778,1751835046061,-460.0,0.00018763,2]
[370016780,1751835046070,-151.0,0.00018763,2]
[370016781,1751835046079,-203.944902,0.00018763,2]
[370016782,1751835046088,-160.528021,0.00018763,2]
[370016783,1751835046097,-160.528021,0.00018763,2]
[370016784,1751835046107,-242.641373,0.00018763,2]
[370016785,1751835046116,-242.641373,0.00018763,2]
[370016786,1751835046126,-460.0,0.00018763,2]
[370016787,1751835046135,-151.0,0.00018763,2]
[370016788,1751835046144,-421.64019,0.00018763,2]
[370016789,1751835046153,-151.0,0.00018763,2]
[370016790,1751835046162,-421.64019,0.00018763,2]
[370016791,1751835046172,-151.0,0.00018763,2]
[370016792,1751835046181,-171.287742,0.00018763,2]
[370016793,1751835046190,-548.26,0.00018763,2]
[370016794,1751835046200,-587.0,0.00018763,2]
[370016795,1751835046209,-460.0,0.00018764,2]
[370016796,1751835046218,-460.0,0.00018764,2]
[370016797,1751835046227,-865.91,0.00018764,2]
[370016798,1751835046236,-2596.85,0.00018764,2]
[370016799,1751835046246,-650.75,0.00018764,2]
[370016800,1751835046255,-500.0,0.000188,2]
[370016801,1751835046265,-151.0,0.00018865,2]
[370016802,1751835046274,-5000.0,0.00018865,2]
[370016803,1751835046284,-500.0,0.00018872,2]
[370016804,1751835046293,-2000.0,0.00018872,2]
[370016805,1751835046302,-376.0,0.00018875,2]
[370016806,1751835046312,-500.0,0.00018885,2]
[370016807,1751835046321,-376.0,0.00018892,2]
[370016808,1751835046331,-151.0,0.000189,2]
[370016809,1751835046340,-151.0,0.000189,2]
[370016810,1751835046350,-6662.08224212,0.000189,2]
[370016811,1751835046360,-500.0,0.00018969,2]
[370016812,1751835046369,-500.0,0.00018973,2]
[370016813,1751835046379,-180.082329,0.00018976,2]
[370016814,1751835046389,-180.082329,0.00018976,2]
[370016815,1751835046398,-151.0,0.00018997,2]
[370016816,1751835046408,-50131.05297385,0.00018998,2]
[370016817,1751835046430,-58892.37640215,0.00018998,2]
[370016818,1751835046440,-151.0,0.00018998,2]
[370016819,1751835046449,-151.0,0.00018998,2]
[370016820,1751835046459,-287.738569,0.00018998,2]
[370016821,1751835046468,-151.0,0.00018998,2]
[370016822,1751835046478,-153.808553,0.00018998,2]
[370016823,1751835046488,-151.0,0.00018998,2]
[370016824,1751835046498,-151.0,0.00018998,2]
[370016825,1751835046507,-151.0,0.00018998,2]
[370016826,1751835046517,-180.082329,0.00018998,2]
[370016827,1751835046526,-180.082329,0.00018998,2]
[370016828,1751835046536,-151.0,0.00018998,2]
[370016829,1751835046547,-151.0,0.00018998,2]
[370016830,1751835046556,-151.0,0.00018998,2]
[370016831,1751835046566,-151.0,0.00018998,2]
[370016832,1751835046575,-151.0,0.00018998,2]
[370016833,1751835046584,-244.624236,0.00018998,2]
[370016834,1751835046594,-151.0,0.00018998,2]
[370016835,1751835046603,-244.624236,0.00018998,2]
[370016836,1751835046612,-151.0,0.00018998,2]
[370016837,1751835046622,-151.0,0.00018998,2]
[370016838,1751835046631,-160.528021,0.00018998,2]
[370016839,1751835046640,-160.528021,0.00018998,2]
[370016840,1751835046649,-242.641373,0.00018998,2]
[370016841,1751835046659,-242.641373,0.00018998,2]
[370016842,1751835046668,-151.0,0.00018998,2]
[370016843,1751835046677,-151.0,0.00018998,2]
[370016844,1751835046686,-421.64019,0.00018998,2]
[370016845,1751835046696,-151.0,0.00018998,2]
[370016846,1751835046705,-421.64019,0.00018998,2]
[370016847,1751835046714,-151.0,0.00018998,2]
[370016848,1751835046724,-151.0,0.00018998,2]
[370016849,1751835046733,-151.0,0.00018998,2]
[370016850,1751835046742,-151.0,0.00018998,2]
[370016851,1751835046752,-151.0,0.00018998,2]
[370016852,1751835046761,-151.0,0.00018998,2]
[370016853,1751835046771,-176.051126,0.00018998,2]
[370016854,1751835046781,-244.434973,0.00018998,2]
[370016855,1751835046790,-151.0,0.00018998,2]
[370016856,1751835046799,-244.434973,0.00018998,2]
[370016857,1751835046808,-151.0,0.00018998,2]
[370016858,1751835046817,-209.655756,0.00018998,2]
[370016859,1751835046827,-209.655756,0.00018998,2]
[370016860,1751835046836,-151.0,0.00018998,2]
[370016861,1751835046845,-23415.04046859,0.00019,2]
[370016862,1751835046854,-151.0,0.00019,2]
[370016863,1751835046864,-1277.934315,0.00019,2]
[370016864,1751835046874,-302.66710251,0.00019,2]
[370016865,1751835046883,-376.0,0.00019005,2]
[370016866,1751835046892,-185.62746866,0.0001901,2]
[370016867,1751835046902,-966.68,0.00019034,2]
[370016868,1751835046911,-1386.99,0.00019034,2]
[370016869,1751835046920,-1275.66,0.00019035,2]
[370016870,1751835046930,-1400.55,0.00019035,2]
[370016871,1751835046939,-771.03,0.00019035,2]
[370016872,1751835046948,-591.79,0.00019035,2]
[370016873,1751835046958,-1083.75,0.00019036,2]
[370016874,1751835046967,-460.0,0.00019036,2]
[370016875,1751835046977,-1320.85,0.00019036,2]
[370016876,1751835046986,-985.19,0.00019036,2]
[370016877,1751835046995,-2142.33,0.00019036,2]
[370016878,1751835047004,-559.0,0.00019036,2]
[370016879,1751835047016,-460.0,0.00019036,2]
[370016880,1751835047026,-662.04,0.00019036,2]
[370016881,1751835047035,-724.84,0.00019036,2]
[370016882,1751835047044,-460.0,0.00019036,2]
[370016883,1751835047054,-460.0,0.00019036,2]
[370016884,1751835047063,-1494.62,0.00019036,2]
[370016885,1751835047072,-460.0,0.00019036,2]
[370016886,1751835047081,-460.0,0.00019037,2]
[370016887,1751835047090,-460.0,0.00019037,2]
[370016888,1751835047100,-460.0,0.00019037,2]
[370016889,1751835047109,-460.0,0.00019037,2]
[370016890,1751835047118,-548.26,0.00019037,2]
[370016891,1751835047127,-587.0,0.00019037,2]
[370016892,1751835047136,-460.0,0.00019038,2]
[370016893,1751835047145,-277.54784624,0.00019038,2]
[370016894,1751835047154,-865.91,0.00019038,2]
[370016895,1751835047164,-2596.85,0.00019038,2]
[370016896,1751835047173,-650.75,0.00019038,2]
[370016897,1751835047183,-500.0,0.00019053,2]
[370016898,1751835047192,-500.86200453,0.0001907,2]
[370016899,1751835047201,-500.0,0.0001907,2]
[370016900,1751835047211,-500.74772515,0.0001907,2]
[370016901,1751835047220,-600.0,0.0001907,2]
[370016902,1751835047229,-500.0,0.0001907,2]
[370016903,1751835047239,-500.0,0.0001907,2]
[370016904,1751835047250,-376.0,0.00019089,2]
[370016905,1751835047259,-151.0,0.000191,2]
[370016906,1751835047269,-151.0,0.000191,2]
[370016907,1751835047278,-2600.73563526,0.00019136,2]
[370016908,1751835047288,-500.0,0.00019137,2]
[370016909,1751835047298,-376.0,0.00019147,2]
[370016910,1751835047308,-2000.0,0.00019164,2]
[370016911,1751835047318,-161.132513,0.00019176,3]
[370016912,1751835047328,-151.0,0.00019178,2]
[370016913,1751835047337,-151.0,0.00019178,2]
[370016914,1751835047347,-151.0,0.00019178,2]
[370016915,1751835047356,-180.082329,0.00019178,2]
[370016916,1751835047365,-180.082329,0.00019178,2]
[370016917,1751835047374,-151.0,0.00019178,2]
[370016918,1751835047384,-151.0,0.00019178,2]
[370016919,1751835047394,-151.0,0.00019178,2]
[370016920,1751835047404,-151.0,0.00019178,2]
[370016921,1751835047414,-151.0,0.00019178,2]
[370016922,1751835047423,-151.0,0.00019178,2]
[370016923,1751835047432,-151.0,0.00019178,2]
[370016924,1751835047442,-244.624236,0.00019178,2]
[370016925,1751835047451,-209.248216,0.00019178,2]
[370016926,1751835047461,-244.624236,0.00019178,2]
[370016927,1751835047470,-300.611582,0.00019178,2]
[370016928,1751835047479,-151.0,0.00019178,2]
[370016929,1751835047489,-160.528021,0.00019178,2]
[370016930,1751835047498,-160.528021,0.00019178,2]
[370016931,1751835047507,-242.641373,0.00019178,2]
[370016932,1751835047517,-242.641373,0.00019178,2]
[370016933,1751835047527,-256.463535,0.00019178,2]
[370016934,1751835047536,-151.0,0.00019178,2]
[370016935,1751835047545,-421.64019,0.00019178,2]
[370016936,1751835047555,-151.0,0.00019178,2]
[370016937,1751835047564,-151.0,0.00019178,2]
[370016938,1751835047573,-421.64019,0.00019178,2]
[370016939,1751835047584,-151.0,0.00019178,2]
[370016940,1751835047594,-151.0,0.00019178,2]
[370016941,1751835047604,-151.0,0.00019178,2]
[370016942,1751835047615,-151.0,0.00019178,2]
[370016943,1751835047625,-151.0,0.00019178,2]
[370016944,1751835047634,-244.434973,0.00019178,2]
[370016945,1751835047643,-244.434973,0.00019178,2]
[370016946,1751835047654,-151.0,0.00019178,2]
[370016947,1751835047665,-209.655756,0.00019178,2]
[370016948,1751835047675,-209.655756,0.00019178,2]
[370016949,1751835047685,-151.0,0.00019178,2]
[370016950,1751835047697,-366.6379324,0.00019178,2]
[370016951,1751835047706,-151.0,0.00019178,2]
[370016952,1751835047719,-151.0,0.00019178,2]
[370016953,1751835047729,-55231.2461848,0.00019178,2]
[370016954,1751835047738,-936.463159,0.00019178,2]
[370016955,1751835047748,-666.0,0.00019178,2]
[370016956,1751835047757,-302.66710251,0.0001919,2]
[370016957,1751835047766,-151.0,0.00019205,2]
[370016958,1751835047776,-198.59516479,0.00019205,2]
[370016959,1751835047785,-500.0,0.00019221,2]
[370016960,1751835047794,-151.0,0.00019233,2]
[370016961,1751835047804,-151.0,0.0001926,2]
[370016962,1751835047813,-376.0,0.00019274,2]
[370016963,1751835047822,-222.14460977,0.00019288,2]
[370016964,1751835047831,-794.287,0.000193,2]
[370016965,1751835047840,-500.0,0.00019305,2]
[370016966,1751835047849,-966.68,0.00019308,2]
[370016967,1751835047859,-1386.99,0.00019308,2]
[370016968,1751835047868,-1275.66,0.00019309,2]
[370016969,1751835047877,-1400.55,0.00019309,2]
[370016970,1751835047886,-771.03,0.00019309,2]
[370016971,1751835047895,-591.79,0.00019309,2]
[370016972,1751835047905,-1083.75,0.0001931,2]
[370016973,1751835047915,-460.0,0.0001931,2]
[370016974,1751835047924,-1320.85,0.0001931,2]
[370016975,1751835047933,-985.19,0.0001931,2]
[370016976,1751835047942,-2142.33,0.0001931,2]
[370016977,1751835047951,-559.0,0.0001931,2]
[370016978,1751835047960,-460.0,0.0001931,2]
[370016979,1751835047969,-662.04,0.0001931,2]
[370016980,1751835047978,-724.84,0.0001931,2]
[370016981,1751835047987,-460.0,0.0001931,2]
[370016982,1751835047997,-460.0,0.0001931,2]
[370016983,1751835048006,-460.0,0.0001931,2]
[370016984,1751835048018,-1494.62,0.0001931,2]
[370016985,1751835048028,-151.0,0.00019311,2]
[370016986,1751835048037,-460.0,0.00019311,2]
[370016987,1751835048046,-460.0,0.00019311,2]
[370016988,1751835048055,-304.50618639,0.00019311,2]
[370016989,1751835048065,-460.0,0.00019311,2]
[370016990,1751835048074,-548.26,0.00019311,2]
[370016991,1751835048083,-587.0,0.00019311,2]
[370016992,1751835048092,-460.0,0.00019312,2]
[370016993,1751835048102,-865.91,0.00019312,2]
[370016994,1751835048112,-2596.85,0.00019312,2]
[370016995,1751835048246,-650.75,0.00019312,2]
[370016996,1751835048257,-3393.69868081,0.00019317,2]
[370016997,1751835048267,-200.0,0.00019328,2]
[370016998,1751835048276,-151.0,0.00019329,2]
[370016999,1751835048286,-151.0,0.00019329,2]
[370017000,1751835048296,-151.0,0.00019329,2]
[370017001,1751835048305,-240.64818,0.00019329,2]
[370017002,1751835048315,-180.082329,0.00019329,2]
[370017003,1751835048324,-180.082329,0.00019329,2]
[370017004,1751835048334,-151.0,0.00019329,2]
[370017005,1751835048343,-151.0,0.00019329,2]
[370017006,1751835048353,-151.0,0.00019329,2]
[370017007,1751835048362,-151.0,0.00019329,2]
[370017008,1751835048372,-244.624236,0.00019329,2]
[370017009,1751835048382,-244.624236,0.00019329,2]
[370017010,1751835048391,-151.0,0.00019329,2]
[370017011,1751835048401,-160.528021,0.00019329,2]
[370017012,1751835048410,-160.528021,0.00019329,2]
[370017013,1751835048420,-242.641373,0.00019329,2]
[370017014,1751835048429,-242.641373,0.00019329,2]
[370017015,1751835048440,-151.0,0.00019329,2]
[370017016,1751835048450,-421.64019,0.00019329,2]
[370017017,1751835048459,-151.0,0.00019329,2]
[370017018,1751835048469,-421.64019,0.00019329,2]
[370017019,1751835048479,-151.0,0.00019329,2]
[370017020,1751835048489,-151.0,0.00019329,2]